bitfinex/quotes_ETHUSD_20250802
["timestamp","ask_amount","ask_price","bid_price","bid_amount"]
[1754126742021,0.1,3497.6,3497.5,0.002]
[1754126742346,3.6113,3498.3,3497.5,0.002]
[1754126742347,0.1432,3498.3,3497.5,0.434]
[1754126742581,0.1,3497.9,3497.8,0.1432]
[1754126742866,0.1,3498.1,3497.8,0.1432]
[1754126743154,0.1,3498.0,3497.8,0.2896]
[1754126743336,0.1,3498.0,3497.8,0.1464]
[1754126743726,0.1,3498.0,3497.5,1.18030763]
[1754126743912,0.1,3498.0,3497.6,1.25293839]
[1754126744114,0.1,3498.0,3497.9,0.1432]
[1754126744308,0.1,3498.2,3497.9,0.17178858]
[1754126744551,0.1,3498.7,3498.0,0.2888]
[1754126744705,0.1,3498.5,3498.1,0.1432]
[1754126744912,0.1,3498.5,3498.4,0.1432]
[1754126745331,0.1,3498.5,3497.6,0.96413839]
[1754126745651,0.1,3498.3,3498.1,0.1432]
[1754126745860,0.1,3498.3,3497.5,0.002]
[1754126745861,0.4564,3498.2,3497.5,0.002]
[1754126746155,0.4564,3498.2,3497.9,0.1432]
[1754126746156,0.9245,3498.2,3497.9,0.1432]
[1754126746376,0.4564,3498.1,3497.9,0.1432]
[1754126747338,0.1,3498.6,3498.0,0.02858776]
[1754126747569,0.1,3498.2,3498.0,0.02858776]
[1754126747845,0.1,3498.3,3498.2,0.1432]
[1754126748037,0.1,3498.3,3498.1,0.1432]
[1754126748271,0.4564,3498.2,3498.1,0.1432]
[1754126748451,0.4564,3498.2,3497.5,0.002]
[1754126748782,0.9245,3498.2,3497.9,0.1432]
[1754126749090,0.9245,3498.1,3497.9,0.1432]
[1754126749239,0.4681,3498.1,3497.9,0.1432]
[1754126749440,0.4564,3498.0,3497.9,0.1432]
[1754126749641,1.0245,3498.0,3497.9,0.1432]
[1754126750146,0.5681,3498.0,3497.9,0.1432]
[1754126750299,1.1677,3498.0,3497.5,0.1452]
[1754126750456,0.7113,3498.0,3497.9,0.002]
[1754126750656,1.1677,3498.0,3497.9,0.002]
[1754126751695,1.1608,3498.0,3497.9,0.002]
[1754126752058,3.71448,3498.0,3497.9,0.002]
[1754126752992,10.73248,3498.0,3497.9,0.002]
[1754126753867,10.18248,3498.0,3497.9,0.002]
[1754126754074,9.4641,3498.0,3497.9,0.002]
[1754126754576,9.9253,3498.0,3497.9,0.002]
[1754126754887,8.2093,3498.0,3497.9,0.002]
[1754126756125,10.4753,3498.0,3497.9,0.002]
[1754126756419,11.96383,3498.0,3497.9,0.002]
[1754126757074,14.96383,3498.0,3497.9,0.002]
[1754126757714,17.10883,3498.0,3497.9,0.002]
[1754126757925,17.8863,3498.0,3497.9,0.002]
[1754126760373,13.4753,3498.0,3497.9,0.002]
[1754126760608,17.8923,3498.0,3497.9,0.002]
[1754126761176,0.1,3496.1,3496.0,1.0]
[1754126761494,4.517,3496.1,3496.0,1.0]
[1754126761825,5.4651,3496.1,3496.0,1.0]
[1754126762228,9.56161,3496.1,3496.0,1.0]
[1754126762524,35.8198484,3496.1,3496.0,1.0]
[1754126762679,9.82103074,3496.1,3496.0,1.0]
[1754126762886,9.82303074,3496.1,3496.0,1.0]
[1754126763207,5.35803074,3496.1,3496.0,1.0]
[1754126763421,9.82303074,3496.1,3496.0,1.0]
[1754126764079,11.53903074,3496.1,3496.0,1.0]
[1754126765516,7.07403074,3496.1,3496.0,1.0]
[1754126765715,4.26152074,3496.1,3496.0,1.0]
[1754126765917,8.72652074,3496.1,3496.0,1.0]
[1754126766078,9.27652074,3496.1,3496.0,1.0]
[1754126766284,10.99252074,3496.1,3496.0,1.0]
[1754126768323,40.99252074,3496.1,3496.0,1.0]
[1754126768532,43.86076781,3496.1,3496.0,1.0]
[1754126769827,52.32184411,3496.1,3496.0,1.0]
[1754126770393,22.32184411,3496.1,3496.0,1.0]
[1754126770582,22.32184411,3496.1,3493.5,0.004]
[1754126770583,0.1,3493.6,3493.5,0.004]
[1754126770783,4.569,3493.6,3493.5,0.004]
[1754126771711,4.7122,3493.6,3493.5,0.004]
[1754126773038,5.1991,3493.6,3493.5,0.004]
[1754126773188,5.6603,3493.6,3493.5,0.004]
[1754126773394,5.1991,3493.6,3493.5,0.004]
[1754126773590,0.2432,3493.6,3493.5,0.004]
[1754126773914,0.1432,3493.6,3493.5,0.2968]
[1754126774233,0.1432,3493.6,3493.5,1.17258763]
[1754126774539,0.1,3493.8,3493.5,1.31578763]
[1754126774689,0.1,3493.8,3493.5,0.1472]
[1754126774891,0.2432,3493.8,3493.5,0.004]
[1754126775090,4.473,3493.7,3493.5,0.004]
[1754126775406,0.1,3493.6,3493.5,0.004]
[1754126776003,0.1,3493.6,3493.5,0.1524]
[1754126776291,0.1,3493.6,3493.5,1.31566763]
[1754126776513,0.1,3493.6,3493.5,1.02286763]
[1754126776733,0.1,3493.6,3493.5,0.1472]
[1754126776930,0.1,3493.6,3493.5,0.2956]
[1754126777092,0.1,3493.6,3493.5,0.1472]
[1754126777294,0.1,3493.6,3493.5,0.2956]
[1754126777601,0.1,3493.6,3493.5,0.44]
[1754126777808,0.1,3494.2,3493.5,8.7578763]
[1754126778132,0.1,3494.4,3494.0,8.4610763]
[1754126778331,0.1,3494.6,3494.1,0.2928]
[1754126778485,0.1,3494.6,3494.2,0.2928]
[1754126778686,0.1,3494.6,3494.3,0.1484]
[1754126779103,0.1,3494.6,3494.0,0.1484]
[1754126779327,0.1,3494.8,3494.1,0.17301967]
[1754126779508,4.475,3495.1,3494.2,0.17701885]
[1754126779708,4.475,3495.1,3494.3,0.1444]
[1754126779919,0.55,3495.4,3494.4,0.02861721]
[1754126780231,0.1,3495.0,3494.5,0.2928]
[1754126780428,0.22001851,3495.2,3494.2,6.12467496]
[1754126780589,0.22001851,3495.2,3494.6,0.1484]
[1754126780789,4.476,3495.4,3494.6,0.1484]
[1754126781027,4.476,3495.4,3494.7,0.1444]
[1754126781227,7.429,3496.1,3494.8,0.17701394]
[1754126781228,4.479,3495.7,3494.8,0.17701394]
[1754126781527,4.479,3495.7,3494.9,0.78900889]
[1754126781833,4.479,3495.7,3495.0,0.1484]
[1754126782013,0.1,3495.1,3495.0,0.1484]
[1754126782219,0.1,3495.1,3494.9,0.64460889]
[1754126782400,0.66014578,3495.6,3494.6,0.1484]
[1754126782599,0.1,3495.0,3494.6,0.1484]
[1754126783336,0.1,3495.0,3494.3,0.6124675]
[1754126783508,0.1,3495.0,3494.4,0.02861721]
[1754126784042,0.1,3495.0,3494.5,0.2928]
[1754126784219,0.1,3495.0,3494.4,6.12467496]
[1754126784418,0.1,3495.0,3494.6,0.2928]
[1754126785122,0.1,3495.0,3494.4,6.12467496]
[1754126785326,0.1,3495.0,3494.5,0.6124675]
[1754126785528,0.1,3495.0,3494.5,0.9052675]
[1754126785746,0.1,3495.0,3494.6,0.1484]
[1754126786100,0.1,3495.0,3494.5,0.6124675]
[1754126786803,0.1,3494.6,3494.0,4.489]
[1754126787010,0.5948,3494.6,3493.8,6.12467496]
[1754126787309,0.5948,3494.6,3493.9,5.18904626]
[1754126787505,0.1,3494.6,3494.0,0.02862049]
[1754126787734,0.1,3494.6,3494.1,0.1484]
[1754126787906,0.4948,3495.3,3494.5,0.1432]
[1754126788103,0.1,3494.9,3494.7,0.1432]
[1754126788342,0.1432,3495.2,3494.7,0.1432]
[1754126788343,0.1,3495.2,3494.8,0.02861394]
[1754126788649,0.1,3495.8,3495.1,0.1432]
[1754126788805,0.1,3495.8,3495.5,6.12467496]
[1754126789013,0.1,3495.8,3495.6,0.32140739]
[1754126789212,0.1,3495.9,3495.7,0.436]
[1754126789409,0.1,3495.9,3495.7,0.1432]
[1754126789614,0.1432,3496.7,3495.8,0.2928]
[1754126789827,0.1,3496.0,3495.8,0.7992675]
[1754126790040,0.1,3496.0,3495.8,0.6560675]
[1754126790222,0.1,3496.0,3495.9,0.1432]
[1754126790637,0.1,3496.4,3495.9,0.1432]
[1754126790838,1.0397,3496.0,3495.4,4.502]
[1754126791022,0.1,3496.0,3495.5,0.47880821]
[1754126791340,0.1,3496.0,3495.9,0.1432]
[1754126792446,0.1,3496.4,3495.9,0.1432]
[1754126792647,0.1432,3496.6,3495.9,0.1432]
[1754126792648,0.1,3496.0,3495.9,0.1432]
[1754126792953,0.1,3496.0,3495.5,4.9522]
[1754126793155,0.1,3496.0,3495.9,0.1432]
[1754126793353,0.5948,3496.0,3495.9,0.1432]
[1754126793552,0.5948,3496.0,3495.7,0.1432]
[1754126793847,0.4449,3496.2,3495.3,4.5]
[1754126794147,0.4449,3496.2,3495.9,0.1432]
[1754126794148,0.1,3496.0,3495.9,0.1432]
[1754126794356,0.1,3496.0,3495.4,0.47928]
[1754126794357,0.001,3496.4,3496.1,0.1432]
[1754126794571,0.001,3496.4,3496.3,0.1432]
[1754126794929,0.001,3496.4,3496.3,0.436]
[1754126795244,0.001,3496.4,3496.3,1.5420675]
[1754126795759,0.001,3496.4,3496.3,1.2492675]
[1754126795917,0.001,3496.4,3496.3,0.1432]
[1754126797867,0.001,3496.4,3496.3,6.56067496]
[1754126798232,0.001,3496.4,3496.3,6.41627496]
[1754126798557,0.001,3496.4,3496.3,6.56067496]
[1754126798857,0.001,3496.4,3496.3,13.07690892]
[1754126799262,0.001,3496.8,3496.7,5.85983927]
[1754126799461,0.4948,3498.1,3497.2,6.12467496]
[1754126799621,0.4948,3497.9,3497.3,4.502]
[1754126799819,0.1,3497.8,3497.3,4.502]
[1754126800055,11.52,3498.8,3497.4,4.501]
[1754126800056,0.1,3497.5,3497.4,4.501]
[1754126800234,1.0397,3497.5,3497.4,4.501]
[1754126800721,1.0397,3497.5,3497.2,4.501]
[1754126800920,0.9397,3497.4,3497.2,4.501]
[1754126801159,0.1,3497.5,3497.2,4.501]
[1754126801367,1.0397,3497.3,3496.7,8.01894922]
[1754126801663,0.1,3497.1,3496.9,4.499]
[1754126801963,0.5948,3497.1,3496.9,4.499]
[1754126802837,0.1,3497.4,3496.9,4.499]
[1754126803056,0.1,3497.1,3496.9,12.51794922]
[1754126803366,0.1,3497.4,3497.0,0.57158914]
[1754126803541,0.1,3497.4,3497.1,0.02859512]
[1754126804268,0.1,3497.4,3497.0,0.57158914]
[1754126804926,0.1,3497.4,3497.1,4.498]
[1754126805234,0.1,3497.2,3497.1,4.498]
[1754126806021,0.1,3497.2,3497.0,3.57158914]
[1754126806227,0.9397,3497.1,3496.8,3.0]
[1754126806450,0.1,3497.2,3496.8,3.0]
[1754126806767,0.5948,3497.2,3497.0,3.0]
[1754126807527,0.9397,3497.1,3497.0,3.0]
[1754126807942,0.9397,3497.1,3496.8,3.0]
[1754126808145,0.9397,3497.0,3496.9,7.491]
[1754126808638,0.4449,3497.0,3496.9,7.491]
[1754126808854,0.9397,3497.0,3496.9,4.491]
[1754126809228,0.9397,3497.0,3496.9,0.1432]
[1754126809464,0.9397,3497.0,3496.8,3.0]
[1754126809665,0.9397,3496.9,3496.8,7.6332]
[1754126809843,0.5948,3497.2,3496.8,7.6332]
[1754126810195,0.4948,3497.1,3496.8,7.6332]
[1754126810667,0.9397,3497.0,3496.8,7.6332]
[1754126810857,0.1,3497.2,3496.8,8.83770296]
[1754126811057,1.0397,3497.2,3496.8,8.83770296]
[1754126811259,0.9397,3497.1,3496.8,7.6332]
[1754126811467,0.1,3497.2,3496.8,3.1432]
[1754126811632,0.9397,3497.0,3496.9,4.487]
[1754126811946,0.9397,3497.0,3496.8,3.1432]
[1754126812145,0.9397,3497.0,3496.9,4.486]
[1754126812373,0.1,3497.2,3496.9,5.37297297]
[1754126812541,0.4769,3497.6,3497.0,0.02859593]
[1754126812870,0.1,3497.3,3497.2,8.01894922]
[1754126813060,0.1,3497.3,3497.2,12.50494922]
[1754126813570,0.1,3497.3,3497.2,12.64814922]
[1754126813936,0.5769,3497.3,3497.2,12.64814922]
[1754126814676,0.1,3497.3,3497.2,12.64814922]
[1754126814880,0.1,3497.3,3497.2,14.01650144]
[1754126815778,7.6195,3498.0,3497.2,14.01650144]
[1754126815982,0.1432,3498.3,3497.8,8.16214922]
[1754126816187,7.018,3498.8,3497.9,4.481]
[1754126816339,1.15027862,3498.7,3498.0,0.02858776]
[1754126816536,0.9352,3498.7,3498.1,4.482]
[1754126816947,1.0784,3498.7,3498.3,8.01894922]
[1754126817235,7.018,3498.8,3498.4,0.02858449]
[1754126817441,7.018,3498.8,3498.5,4.6242]
[1754126817848,7.018,3498.8,3498.5,4.481]
[1754126818064,0.1,3498.6,3498.5,4.481]
[1754126818249,7.118,3498.8,3498.7,0.1432]
[1754126818454,0.1,3498.6,3498.5,4.481]
[1754126818859,0.5769,3498.6,3498.5,4.6242]
[1754126819260,0.4583,3498.8,3498.5,4.6242]
[1754126819461,0.1,3498.6,3498.5,4.6242]
[1754126819681,0.1,3498.6,3498.5,4.481]
[1754126819980,0.5769,3498.6,3498.5,4.6242]
[1754126820550,0.4583,3498.9,3498.5,4.65278367]
[1754126820750,0.001,3499.2,3498.8,8.01894922]
[1754126820939,0.001,3499.2,3498.9,4.50458041]
[1754126821135,0.001,3499.2,3498.9,4.476]
[1754126821373,0.001,3499.2,3499.0,1.26433492]
[1754126821604,0.001,3499.2,3499.1,4.477]
[1754126822403,0.101,3499.2,3499.1,4.477]
[1754126822604,1.0362,3499.2,3499.0,1.26433492]
[1754126822809,0.1,3499.0,3498.2,8.01894922]
[1754126823014,0.1,3498.7,3498.3,4.477]
[1754126823195,0.1,3498.7,3498.4,4.477]
[1754126823379,0.4769,3498.6,3498.4,4.477]
[1754126824075,0.4769,3498.6,3498.2,8.90246563]
[1754126824297,0.9352,3498.5,3498.2,8.01894922]
[1754126824470,0.1,3498.7,3498.3,4.475]
[1754126824666,0.1,3497.8,3497.2,8.01894922]
[1754126824880,0.4769,3497.7,3497.3,4.475]
[1754126825109,0.4769,3497.6,3497.4,4.24939492]
[1754126825277,0.4769,3497.6,3497.5,4.476]
[1754126825476,0.4769,3497.5,3497.4,1.24939492]
[1754126825702,0.9352,3497.5,3497.4,4.476]
[1754126826287,0.9352,3497.5,3497.3,0.02859348]
[1754126826609,0.4769,3497.5,3497.4,4.478]
[1754126827720,0.9352,3497.5,3497.4,4.478]
[1754126828008,0.9352,3497.5,3497.2,8.01894922]
[1754126828212,0.4769,3497.5,3497.4,4.477]
[1754126829231,0.5769,3497.8,3497.4,4.477]
[1754126829389,0.1,3497.8,3497.4,4.477]
[1754126829724,0.9352,3497.7,3497.4,4.477]
[1754126829923,0.1,3497.8,3497.4,4.477]
[1754126830132,0.9352,3497.6,3497.4,4.477]
[1754126830305,0.9352,3497.5,3497.4,4.477]
[1754126830830,0.9352,3497.5,3497.4,4.6202]
[1754126831034,0.9352,3497.5,3497.4,0.1432]
[1754126831333,0.1,3497.3,3497.2,0.1432]
[1754126831486,0.1,3497.3,3497.2,4.6142]
[1754126831688,0.5769,3497.3,3497.2,4.6142]
[1754126831888,0.1,3497.3,3497.2,5.73431492]
[1754126832088,0.1,3497.3,3497.2,5.87751492]
[1754126832526,1.0352,3497.3,3497.2,4.6142]
[1754126832910,0.1,3497.3,3497.2,4.471]
[1754126833089,0.1,3497.3,3497.2,4.6142]
[1754126833296,0.5769,3497.3,3497.2,4.6142]
[1754126833896,1.0352,3497.3,3497.2,0.1432]
[1754126834109,1.0352,3497.3,3497.2,4.6152]
[1754126836626,0.1,3497.6,3497.2,5.07672]
[1754126836948,0.1,3497.6,3497.5,8.01894922]
[1754126837109,0.1,3497.6,3497.5,8.16214922]
[1754126837304,0.5583,3497.6,3497.5,8.16214922]
[1754126837724,1.0352,3497.6,3497.5,8.16214922]
[1754126837925,1.0352,3497.6,3497.5,0.1432]
[1754126838124,1.0352,3497.6,3497.4,4.47]
[1754126838335,0.9352,3497.5,3497.4,4.47]
[1754126839046,0.1,3497.6,3497.4,4.93417951]
[1754126839253,0.1,3497.6,3497.5,8.01894922]
[1754126839550,0.1,3497.6,3497.5,8.16214922]
[1754126840209,1.0352,3497.6,3497.5,0.1432]
[1754126840415,1.0352,3497.6,3497.3,4.469]
[1754126840610,0.9352,3497.5,3497.3,4.469]
[1754126840830,0.1,3497.4,3497.3,4.469]
[1754126841024,1.0352,3497.4,3497.3,4.469]
[1754126841226,1.0352,3497.4,3497.3,4.6122]
[1754126841729,0.1432,3497.9,3497.3,5.87531492]
[1754126841932,0.1,3497.7,3497.6,8.01894922]
[1754126842134,0.1,3497.7,3497.6,8.16214922]
[1754126842767,0.4678,3498.0,3497.6,8.16214922]
[1754126842915,0.9045,3497.9,3497.6,8.16214922]
[1754126843312,3.0,3498.3,3497.6,9.40837563]
[1754126843313,0.4678,3498.2,3497.6,9.40837563]
[1754126843532,0.4678,3498.2,3497.8,0.1432]
[1754126843833,0.1432,3498.4,3497.8,0.1432]
[1754126843834,0.1,3497.9,3497.8,0.1432]
[1754126844170,1.0045,3497.9,3497.7,4.468]
[1754126844513,0.1,3497.9,3497.7,4.468]
[1754126844714,0.1432,3498.0,3497.5,0.1432]
[1754126844715,0.1,3497.6,3497.5,0.1432]
[1754126845068,1.0045,3497.6,3497.4,4.6122]
[1754126845228,0.4367,3497.5,3497.4,4.6122]
[1754126845554,0.1,3497.6,3497.4,4.6122]
[1754126846117,0.5678,3497.6,3497.4,4.6122]
[1754126846620,0.5678,3497.6,3497.4,0.1432]
[1754126846820,0.5678,3497.6,3497.4,5.50760441]
[1754126847021,0.1,3497.6,3497.4,5.50760441]
[1754126847355,0.9045,3497.5,3497.4,4.6112]
[1754126848654,0.9045,3497.5,3497.4,0.1432]
[1754126849452,0.4678,3497.5,3497.4,0.1432]
[1754126849952,0.9045,3497.5,3497.4,0.1432]
[1754126850722,0.1,3497.4,3497.2,4.463]
[1754126850924,0.1,3497.4,3497.3,0.1432]
[1754126851613,1.0045,3497.4,3497.3,0.1432]
[1754126851817,0.1,3497.4,3497.3,0.1432]
[1754126852060,0.1,3497.4,3497.3,0.60382]
[1754126854626,1.0045,3497.4,3497.3,0.1432]
[1754126854831,0.1,3496.9,3496.8,0.4698]
[1754126855033,0.5678,3496.9,3496.8,4.9288]
[1754126855244,0.5678,3496.9,3496.8,5.09708]
[1754126855849,1.0045,3496.9,3496.8,5.09708]
[1754126857129,1.0045,3496.9,3496.8,0.1452]
[1754126857330,1.1477,3496.9,3496.8,0.002]
[1754126857534,0.1,3496.5,3496.4,0.002]
[1754126857962,2.7245,3496.5,3496.4,0.002]
[1754126858469,3.2745,3496.5,3496.4,0.002]
[1754126858629,3.60195,3496.5,3496.4,0.002]
[1754126859470,6.60195,3496.5,3496.4,0.002]
[1754126860388,36.60195,3496.5,3496.4,0.002]
[1754126861865,37.57550367,3496.5,3496.4,0.002]
[1754126862376,7.57550367,3496.5,3496.4,0.002]
[1754126862536,37.57550367,3496.5,3496.4,0.002]
[1754126863180,36.75122846,3496.5,3496.4,0.002]
[1754126863331,6.75122846,3496.5,3496.4,0.002]
[1754126863535,36.75122846,3496.5,3496.4,0.002]
[1754126864973,37.57550367,3496.5,3496.4,0.002]
[1754126865174,0.1,3493.9,3493.5,0.1544]
[1754126865354,0.1,3493.9,3493.6,0.2948]
[1754126865675,0.1,3493.9,3493.7,0.2948]
[1754126865878,0.1,3493.9,3493.8,8.01894922]
[1754126866082,0.1,3493.9,3493.8,8.31374922]
[1754126866790,4.477,3494.6,3493.8,8.31374922]
[1754126866791,0.1,3494.1,3493.8,8.31374922]
[1754126866976,0.1,3494.1,3493.9,0.85999623]
[1754126867286,0.1,3494.1,3493.9,1.12617492]
[1754126867589,0.1,3494.1,3494.0,0.438]
[1754126868553,0.1,3494.1,3494.0,0.1432]
[1754126868794,0.1,3494.1,3493.9,0.1432]
[1754126869296,0.1,3494.1,3493.9,3.1432]
[1754126870295,0.1,3494.1,3493.9,0.1432]
[1754126870459,0.1,3493.6,3493.5,0.1492]
[1754126870789,0.1,3493.6,3493.5,1.87685492]
[1754126870998,0.1,3493.6,3493.5,11.16814922]
[1754126871352,0.1,3493.6,3493.5,11.02494922]
[1754126871555,0.1,3493.8,3493.6,3.0]
[1754126874099,0.1,3493.8,3493.5,8.16814922]
[1754126874268,0.1,3493.6,3493.5,11.16814922]
[1754126876401,0.1,3493.6,3493.5,8.16814922]
[1754126877362,0.1,3493.6,3493.5,9.74220414]
[1754126877697,0.1432,3494.5,3493.5,9.74220414]
[1754126877956,0.1432,3494.5,3494.1,8.01894922]
[1754126878605,0.4787,3494.4,3494.1,8.01894922]
[1754126878907,0.1432,3494.2,3493.8,4.477]
[1754126879205,0.9169,3494.1,3493.7,0.1432]
[1754126879387,0.1432,3494.2,3493.7,4.6192]
[1754126879559,0.4787,3494.7,3494.1,8.01894922]
[1754126879764,0.1432,3494.5,3494.1,8.01894922]
[1754126880370,0.6219,3494.5,3494.1,8.01894922]
[1754126880705,0.9169,3494.4,3494.1,8.01894922]
[1754126880908,1.0601,3494.3,3494.1,8.01894922]
[1754126881311,0.9169,3494.2,3494.0,4.478]
[1754126881495,0.1432,3494.3,3493.6,8.01894922]
[1754126881496,0.9169,3494.1,3493.6,8.01894922]
[1754126881716,0.1432,3494.1,3493.6,12.63914922]
[1754126881880,0.9169,3494.0,3493.6,12.63914922]
[1754126882303,0.1432,3494.1,3493.6,12.63914922]
[1754126882504,0.4787,3494.0,3493.6,12.63914922]
[1754126882785,0.4787,3493.9,3493.6,0.1432]
[1754126882983,0.1432,3494.1,3493.8,5.51332858]
[1754126883224,0.6219,3494.1,3493.8,5.51332858]
[1754126883391,0.9169,3494.0,3493.8,5.51332858]
[1754126884022,0.4787,3494.0,3493.8,5.51332858]
[1754126884227,0.4382,3494.3,3493.8,5.51332858]
[1754126884228,0.1432,3494.2,3493.8,5.51332858]
[1754126884434,0.1432,3494.2,3494.1,5.51332858]
[1754126885191,0.1432,3494.3,3494.1,5.51332858]
[1754126885540,0.6219,3494.3,3494.1,5.51332858]
[1754126885735,0.5814,3494.3,3494.1,5.51332858]
[1754126886035,0.4787,3494.2,3494.1,5.51332858]
[1754126886595,0.9169,3494.2,3494.1,5.51332858]
[1754126887094,0.9169,3494.2,3493.8,5.51332858]
[1754126887295,1.0601,3494.1,3493.8,5.51332858]
[1754126887533,0.1432,3494.1,3493.8,5.51332858]
[1754126887740,0.4787,3494.0,3493.8,5.51332858]
[1754126888317,0.9169,3493.9,3493.8,5.51332858]
[1754126889347,0.9169,3493.9,3493.5,0.1492]
[1754126889348,32.27,3493.8,3493.5,0.1492]
[1754126889651,5.27,3493.6,3493.5,0.006]
[1754126889827,0.9169,3494.4,3493.5,0.006]
[1754126890026,0.08707331,3495.5,3493.5,0.006]
[1754126890027,0.55,3493.9,3493.6,5.51332858]
[1754126890345,0.9169,3493.8,3493.6,5.51332858]
[1754126890560,0.4787,3494.2,3493.6,5.51332858]
[1754126890735,0.21139328,3494.5,3494.1,5.51332858]
[1754126891049,0.21139328,3494.5,3494.4,5.51332858]
[1754126891801,1.72,3494.9,3494.4,5.51332858]
[1754126892117,0.4787,3495.5,3494.8,5.51332858]
[1754126892318,0.4787,3495.5,3495.2,5.51332858]
[1754126892547,0.9169,3495.4,3495.2,5.51332858]
[1754126892908,4.72,3495.6,3495.2,5.51332858]
[1754126893111,0.4787,3496.5,3495.5,5.51332858]
[1754126893421,0.859998,3497.6,3496.3,5.51332858]
[1754126893601,0.4787,3497.1,3496.7,5.51332858]
[1754126894008,1.72,3497.0,3496.7,5.51332858]
[1754126894202,0.22008294,3496.8,3496.7,5.51332858]
[1754126894445,0.001,3496.8,3496.7,5.51332858]
[1754126894860,0.001,3496.8,3496.3,12.50793133]
[1754126895143,0.001,3496.8,3496.4,0.2948]
[1754126895349,0.001,3496.8,3496.3,13.78820446]
[1754126896754,0.001,3496.8,3496.3,13.93660446]
[1754126897509,0.001,3496.8,3496.4,0.2948]
[1754126897914,0.001,3496.8,3496.5,0.2948]
[1754126898241,0.001,3496.8,3496.6,5.89330045]
[1754126898750,0.001,3497.3,3496.6,5.89330045]
[1754126898751,0.001,3497.3,3496.7,0.2948]
[1754126899053,0.001,3497.3,3496.7,0.4787]
[1754126899348,0.001,3497.3,3496.8,12.50593133]
[1754126899548,0.001,3497.3,3496.9,1.29846313]
[1754126899757,0.001,3497.3,3497.0,0.1432]
[1754126899923,1.0601,3497.2,3497.0,4.485]
[1754126900117,0.1432,3497.2,3497.0,4.485]
[1754126900314,0.1432,3497.2,3497.1,4.49]
[1754126900729,0.1432,3497.2,3496.1,0.1484]
[1754126900730,0.1432,3497.2,3497.0,4.49]
[1754126900927,0.4787,3497.1,3496.9,4.49]
[1754126901125,0.4382,3497.0,3496.9,4.49]
[1754126901354,0.9169,3497.0,3496.9,4.49]
[1754126902053,0.9169,3497.0,3496.6,0.1432]
[1754126902254,0.1432,3497.2,3496.6,0.1432]
[1754126902430,0.9276,3496.9,3496.7,4.487]
[1754126902853,0.9276,3496.9,3496.6,0.1432]
[1754126903031,0.9276,3496.9,3496.8,4.487]
[1754126903359,0.4734,3496.9,3496.8,4.487]
[1754126903727,0.9276,3496.9,3496.8,4.487]
[1754126904056,0.9276,3496.9,3496.6,0.1432]
[1754126904057,0.9276,3496.9,3496.7,4.485]
[1754126904862,0.4734,3496.9,3496.7,4.485]
[1754126905755,0.5984,3497.2,3496.7,4.485]
[1754126905756,0.1442,3497.2,3496.8,8.02093133]
[1754126906455,0.6176,3497.2,3496.8,8.02093133]
[1754126906836,0.1442,3497.2,3496.8,8.02093133]
[1754126907145,0.9276,3497.1,3496.8,8.02093133]
[1754126907327,0.4734,3497.0,3496.8,8.02093133]
[1754126907538,0.9276,3496.9,3496.8,4.481]
[1754126908045,0.9276,3496.9,3496.6,0.1432]
[1754126908245,0.4734,3496.8,3496.7,4.478]
[1754126908656,0.4542,3496.9,3496.7,4.478]
[1754126908816,0.9276,3496.8,3496.6,4.6212]
[1754126909019,0.4734,3496.7,3496.6,4.6212]
[1754126909461,0.4734,3496.7,3496.6,0.1432]
[1754126909657,0.4734,3496.7,3496.6,4.6202]
[1754126909944,0.4734,3496.7,3496.6,4.6192]
[1754126910145,0.1442,3497.2,3496.6,5.90439963]
[1754126910352,0.1442,3497.2,3496.8,8.02093133]
[1754126910662,0.1442,3497.2,3496.9,4.475]
[1754126912759,0.9276,3497.1,3496.9,4.472]
[1754126913069,0.9276,3497.0,3496.9,4.472]
[1754126913819,0.4734,3497.0,3496.9,4.472]
[1754126914428,0.9276,3497.0,3496.9,4.472]
[1754126914630,0.9276,3497.0,3496.7,4.471]
[1754126915142,0.4734,3497.0,3496.7,4.471]
[1754126915503,0.4734,3497.0,3496.8,4.468]
[1754126916025,0.1442,3497.2,3496.8,4.468]
[1754126916858,0.6176,3497.2,3496.8,4.468]
[1754126917438,0.9276,3497.1,3496.9,4.465]
[1754126917639,0.4542,3497.1,3496.8,4.465]
[1754126917856,0.4734,3497.0,3496.8,4.465]
[1754126919831,0.1442,3497.2,3496.8,4.465]
[1754126920372,0.4734,3497.1,3496.8,4.465]
[1754126921362,0.9276,3497.1,3496.8,4.465]
[1754126921547,0.4542,3497.1,3496.8,4.465]
[1754126921734,0.4734,3497.0,3496.8,4.465]
[1754126922679,0.9276,3496.9,3495.3,6.875]
[1754126922828,0.1432,3496.6,3496.1,0.1432]
[1754126923034,7.018,3496.6,3496.3,5.50692131]
[1754126923233,7.018,3496.6,3496.3,5.65012131]
[1754126923865,7.018,3496.6,3496.5,0.1432]
[1754126924791,0.001,3497.2,3496.5,0.1432]
[1754126925079,0.001,3497.2,3497.1,0.1432]